Workbook

Sheet TDSheet
A1: Школа | C1: МАОУ "Гимназия" | F1: Соглосовал: | G1: должность | H1: Директор ООО "Школьного питания"
A2: Типовое примерное меню приготавливаемых блюд | G2: фамилия | H2: Ефанова С.Б.
A3: Возрастная категория | E3: 7-11 лет | G3: дата | H3: 1 | I3: 1 | J3: 2026
H4: день | I4: месяц | J4: год
A5: Неделя | B5: День недели | C5: Прием пищи | D5: Раздел меню | E5: Блюда | F5: Вес блюда, г | G5: Белки | H5: Жиры | I5: Углеводы | J5: Калорийность | K5: № рецептуры | L5: Цена
A6: 1 | B6: 1 | C6: Завтрак | D6: гор.блюдо | E6: Каша рисовая молочная с маслом сливочным | F6: 150 | G6: 14 | H6: 13 | I6: 13 | J6: 223 | K6: 311 | L6: 29
D7: гор.напиток | E7: Какао на молоке | F7: 200 | G7: 4 | H7: 4 | I7: 31 | J7: 176 | K7: 693 | L7: 29
D8: хлеб | E8: Бутерброд с сыром на батоне | F8: 50 | G8: 9 | H8: 8 | I8: 11 | J8: 157 | K8: 3 | L8: 47
D9: фрукты | E9: Фрукт | F9: 100 | G9: 1 | H9: 1 | I9: 16 | J9: 55 | K9: пр.пр | L9: 23
D10: итого | F10: =SUM(F6:F9) -> 500 | G10: =SUM(G6:G9) -> 28 | H10: 26 | I10: 71 | J10: 611 | L10: 128
A11: 1 | B11: 1 | C11: Обед | D11: закуска
D12: 1 блюдо | E12: Суп из овощей со сметаной | F12: 250 | G12: 5 | H12: 7 | I12: 12 | J12: 135 | K12: 132 | L12: 42
D13: 2 блюдо | E13: Рулетик мясной запеченный | F13: 105 | G13: 16 | H13: 11 | I13: 9 | J13: 200 | K13: 401 | L13: 55
D14: гарнир | E14: Макаронные изделия отварные с овощной гарнировкой | F14: 170 | G14: 9 | H14: 8 | I14: 38 | J14: 225 | K14: 516 | L14: 31
D15: напиток | E15: Компот | F15: 200 | G15: 0 | H15: 0 | I15: 31 | J15: 126 | K15: 635 | L15: 20
D16: хлеб | E16: Хлеб пшеничный | F16: 30 | G16: 4 | H16: 1 | I16: 18 | J16: 101 | K16: пр.пр. | L16: 6
D17: хлеб | E17: Хлеб черный | F17: 20 | G17: 2 | H17: 0 | I17: 8 | J17: 44 | K17: пр.пр | L17: 6
D18: итого | F18: =SUM(F11:F17) -> 775 | G18: =SUM(G11:G17) -> 36 | H18: 27 | I18: 116 | J18: 831 | L18: 160
C19: Итого за день: | F19: =F10+F18 -> 1,275 | G19: =G10+G18 -> 64 | H19: 53 | I19: 187 | J19: 1,442 | L19: =L10+L18 -> 288
A20: Неделя | B20: День недели | C20: Прием пищи | D20: Раздел меню | E20: Блюда | F20: Вес блюда, г | G20: Белки | H20: Жиры | I20: Углеводы | J20: Калорийность | K20: № рецептуры | L20: Цена
A21: 1 | B21: 2 | C21: Завтрак | D21: гор.блюдо | E21: Пудинг творожный с топпингом | F21: 180 | G21: 14 | H21: 15 | I21: 46 | J21: 374 | K21: 365 | L21: 89
D22: хлеб | E22: Батон | F22: 20 | G22: 1 | H22: 1 | I22: 5 | J22: 53 | K22: пр.пр. | L22: 6
D23: гор.напиток | E23: Чай с сахаром, лимоном | F23: 215 | G23: 0 | H23: 0 | I23: 15 | J23: 62 | K23: 629 | L23: 10
D24: фрукты | E24: Фрукт | F24: 100 | G24: 1 | H24: 1 | I24: 16 | J24: 55 | K24: пр.пр. | L24: 23
D25: итого | F25: =SUM(F21:F24) -> 515 | G25: =SUM(G21:G24) -> 16 | H25: 17 | I25: 82 | J25: 544 | L25: 128
A26: 1 | B26: 2 | C26: Обед | D26: закуска
D27: 1 блюдо | E27: Борщ из свежей капусты со сметаной | F27: 250 | G27: 2 | H27: 7 | I27: 13 | J27: 128 | K27: 110 | L27: 42
D28: 2 блюдо | E28: Мясо «Пикантное» | F28: 100 | G28: 17 | H28: 15 | I28: 10 | J28: 244 | K28: ТТК 68 | L28: 75
D29: гарнир | E29: Каша гречневая с овощной гарнировкой | F29: 170 | G29: 7 | H29: 7 | I29: 32 | J29: 230 | K29: 523 | L29: 19
D30: напиток | E30: Компот | F30: 200 | G30: 0 | H30: 0 | I30: 46 | J30: 182 | K30: 699 | L30: 12
D31: хлеб | E31: Хлеб пшеничный | F31: 30 | G31: 4 | H31: 1 | I31: 18 | J31: 101 | K31: пр.пр. | L31: 6
D32: хлеб | E32: Хлеб черный | F32: 20 | G32: 2 | H32: 0 | I32: 8 | J32: 44 | K32: пр.пр | L32: 6
D33: итого | F33: =SUM(F26:F32) -> 770 | G33: =SUM(G26:G32) -> 32 | H33: 30 | I33: 127 | J33: 929 | L33: =SUM(L26:L32) -> 160
C34: Итого за день: | F34: =F33+F25 -> 1,285 | G34: =G33+G25 -> 48 | H34: 47 | I34: 209 | J34: 1,473 | L34: =L33+L25 -> 288
A35: Неделя | B35: День недели | C35: Прием пищи | D35: Раздел меню | E35: Блюда | F35: Вес блюда, г | G35: Белки | H35: Жиры | I35: Углеводы | J35: Калорийность | K35: № рецептуры | L35: Цена
A36: 1 | B36: 3 | C36: Завтрак | D36: гор.блюдо | E36: Фрикадель паровая мясная с макаронными изделиями отварными | F36: 200 | G36: 13 | H36: 17 | I36: 39 | J36: 356 | K36: 114, 334 | L36: 74
D37: гор.напиток | E37: Отвар из шиповника | F37: 200 | G37: 0 | H37: 0 | I37: 24 | J37: 96 | K37: 705 | L37: 12
D38: хлеб | E38: Батон | F38: 20 | G38: 1 | H38: 1 | I38: 5 | J38: 53 | K38: пр.пр | L38: 6
D39: кисломол. | E39: Йогурт | F39: 125 | G39: 3 | H39: 3 | I39: 11 | J39: 87 | K39: пр.пр | L39: 36
D40: итого | F40: =SUM(F36:F39) -> 545 | G40: =SUM(G36:G39) -> 17 | H40: 21 | I40: 79 | J40: 592 | L40: 128
A41: 1 | B41: 3 | C41: Обед | D41: закуска
D42: 1 блюдо | E42: Суп "Детский" с гренками | F42: 250 | G42: 8 | H42: 11 | I42: 29 | J42: 241 | K42: 355 | L42: 42
D43: 2 блюдо | E43: Пудинг рыбный | F43: 100 | G43: 13 | H43: 7 | I43: 10 | J43: 144 | K43: 401 | L43: 62
D44: гарнир | E44: Пюре картофельное | F44: 150 | G44: 4 | H44: 10 | I44: 26 | J44: 170 | K44: 472 | L44: 39
D45: гор.напиток | E45: Чай с сахаром | F45: 200 | G45: 0 | H45: 0 | I45: 15 | J45: 58 | K45: 628 | L45: 5
D46: хлеб | E46: Хлеб пшеничный | F46: 30 | G46: 4 | H46: 1 | I46: 18 | J46: 101 | K46: пр.пр. | L46: 6
D47: хлеб | E47: Хлеб черный | F47: 20 | G47: 2 | H47: 0 | I47: 8 | J47: 44 | K47: пр.пр | L47: 6
D48: итого | F48: =SUM(F41:F47) -> 750 | G48: =SUM(G41:G47) -> 31 | H48: 29 | I48: 106 | J48: 758 | L48: 160
C49: Итого за день: | F49: =F40+F48 -> 1,295 | G49: =G40+G48 -> 48 | H49: 50 | I49: 185 | J49: 1,350 | L49: 288
A50: Неделя | B50: День недели | C50: Прием пищи | D50: Раздел меню | E50: Блюда | F50: Вес блюда, г | G50: Белки | H50: Жиры | I50: Углеводы | J50: Калорийность | K50: № рецептуры | L50: Цена
A51: 1 | B51: 4 | C51: Завтрак | D51: гор.блюдо | E51: Каша пшеничная молочная с маслом сливочным | F51: 200 | G51: 16 | H51: 18 | I51: 31 | J51: 330 | K51: 311 | L51: 34
D52: гор.напиток | E52: Чай с сахаром, лимоном | F52: 215 | G52: 0 | H52: 0 | I52: 15 | J52: 62 | K52: 629 | L52: 10
D53: хлеб | E53: Детский бургер | F53: 100 | G53: 9 | H53: 8 | I53: 26 | J53: 212 | K53: ТТК №56 | L53: 84
D54: итого | F54: =SUM(F51:F53) -> 515 | G54: =SUM(G51:G53) -> 25 | H54: 26 | I54: 72 | J54: 604 | L54: 128
A55: 1 | B55: 4 | C55: Обед | D55: закуска
D56: 1 блюдо | E56: Суп картофельный с вермишелью | F56: 250 | G56: 13 | H56: 5 | I56: 18 | J56: 168 | K56: 140 | L56: 42
D57: 2 блюдо | E57: Мясо, тушенное в соусе овощном со сметаной | F57: 100 | G57: 15 | H57: 17 | I57: 11 | J57: 256 | K57: 437 | L57: 70
D58: гарнир | E58: Рис припущенный | F58: 150 | G58: 4 | H58: 9 | I58: 36 | J58: 216 | K58: 36 | L58: 19
D59: напиток | E59: Компот | F59: 200 | G59: 0 | H59: 0 | I59: 46 | J59: 182 | K59: 65 | L59: 17
D60: хлеб | E60: Хлеб пшеничный | F60: 30 | G60: 4 | H60: 1 | I60: 18 | J60: 101 | K60: пр.пр. | L60: 6
D61: хлеб | E61: Хлеб черный | F61: 20 | G61: 2 | H61: 0 | I61: 8 | J61: 44 | K61: пр.пр | L61: 6
D62: итого | F62: =SUM(F55:F61) -> 750 | G62: =SUM(G55:G61) -> 38 | H62: 32 | I62: 137 | J62: 967 | L62: 160
C63: Итого за день: | F63: =F62+F54 -> 1,265 | G63: =G62+G54 -> 63 | H63: 58 | I63: 209 | J63: 1,571 | L63: 288
A64: Неделя | B64: День недели | C64: Прием пищи | D64: Раздел меню | E64: Блюда | F64: Вес блюда, г | G64: Белки | H64: Жиры | I64: Углеводы | J64: Калорийность | K64: № рецептуры | L64: Цена
A65: 1 | B65: 5 | C65: Завтрак | D65: гор.блюдо | E65: Суп молочный с макаронными изделиями | F65: 200 | G65: 7 | H65: 11 | I65: 27 | J65: 231 | K65: 160 | L65: 49
D66: кисломол. | E66: Творожок | F66: 100 | G66: 6 | H66: 4 | I66: 20 | J66: 137 | K66: пр.пр | L66: 68
D67: гор.напиток | E67: Чай с сахаром | F67: 200 | G67: 0 | H67: 0 | I67: 15 | J67: 58 | K67: 628 | L67: 5
D68: хлеб | E68: Батон | F68: 20 | G68: 1 | H68: 1 | I68: 5 | J68: 53 | K68: пр.пр | L68: 6
D69: итого | F69: =SUM(F65:F68) -> 520 | G69: =SUM(G65:G68) -> 14 | H69: 16 | I69: 67 | J69: 479 | L69: 128
A70: 1 | B70: 5 | C70: Обед | D70: закуска
D71: 1 блюдо | E71: Рассольник «Ленинградский» со сметаной | F71: 250 | G71: 4 | H71: 5 | I71: 18 | J71: 131 | K71: 132 | L71: 42
D72: 2 блюдо | E72: Запеканка картофельная с мясом с овощной гарнировкой | F72: 260 | G72: 24 | H72: 26 | I72: 42 | J72: 425 | K72: 765 | L72: 101
D73: гор.напиток | E73: Чай с сахаром | F73: 200 | G73: 0 | H73: 0 | I73: 15 | J73: 58 | K73: 628 | L73: 5
D74: хлеб | E74: Хлеб пшеничный | F74: 30 | G74: 4 | H74: 1 | I74: 18 | J74: 101 | K74: пр.пр. | L74: 6
D75: хлеб | E75: Хлеб черный | F75: 20 | G75: 2 | H75: 0 | I75: 8 | J75: 44 | K75: пр.пр | L75: 6
D76: итого | F76: =SUM(F70:F75) -> 760 | G76: =SUM(G70:G75) -> 34 | H76: 32 | I76: 101 | J76: 759 | L76: 160
C77: Итого за день: | F77: =F76+F69 -> 1,280 | G77: =G76+G69 -> 48 | H77: 48 | I77: 168 | J77: 1,238 | L77: =L76+L69 -> 288
A78: Неделя | B78: День недели | C78: Прием пищи | D78: Раздел меню | E78: Блюда | F78: Вес блюда, г | G78: Белки | H78: Жиры | I78: Углеводы | J78: Калорийность | K78: № рецептуры | L78: Цена
A79: 2 | B79: 1 | C79: Завтрак | D79: гор.блюдо | E79: Каша пшенная молочная с маслом сливочным | F79: 150 | G79: 11 | H79: 13 | I79: 18 | J79: 193 | K79: 311 | L79: 29
D80: гор.напиток | E80: Какао на молоке | F80: 200 | G80: 4 | H80: 4 | I80: 31 | J80: 176 | K80: 693 | L80: 29
D81: хлеб | E81: Бутерброд с сыром на батоне | F81: 50 | G81: 9 | H81: 8 | I81: 11 | J81: 157 | K81: 3 | L81: 47
D82: фрукты | E82: Фрукт | F82: 100 | G82: 1 | H82: 1 | I82: 16 | J82: 55 | K82: пр.пр | L82: 23
D83: итого | F83: =SUM(F79:F82) -> 500 | G83: =SUM(G79:G82) -> 25 | H83: 26 | I83: 76 | J83: 581 | L83: 128
A84: 2 | B84: 1 | C84: Обед | D84: закуска | H84: -
D85: 1 блюдо | E85: Суп картофельный с рыбными консервами | F85: 250 | G85: 10 | H85: 8 | I85: 10 | J85: 150 | K85: 133 | L85: 42
D86: 2 блюдо | E86: Биточки мясные | F86: 100 | G86: 13 | H86: 19 | I86: 21 | J86: 306 | K86: 416 | L86: 57
D87: гарнир | E87: Макаронные изделия отварные с овощной гарнировкой | F87: 170 | G87: 9 | H87: 8 | I87: 38 | J87: 225 | K87: 516 | L87: 31
D88: напиток | E88: Кисель | F88: 200 | G88: 0 | H88: 0 | I88: 26 | J88: 105 | K88: ТТК 82 | L88: 18
D89: хлеб | E89: Хлеб пшеничный | F89: 30 | G89: 4 | H89: 1 | I89: 18 | J89: 101 | K89: пр.пр. | L89: 6
D90: хлеб | E90: Хлеб черный | F90: 20 | G90: 2 | H90: 0 | I90: 8 | J90: 44 | K90: пр.пр | L90: 6
D91: итого | F91: =SUM(F84:F90) -> 770 | G91: =SUM(G84:G90) -> 38 | H91: 36 | I91: 121 | J91: 931 | L91: 160
C92: Итого за день: | F92: =F83+F91 -> 1,270 | G92: =G83+G91 -> 63 | H92: 62 | I92: 197 | J92: 1,512 | L92: 288
A93: Неделя | B93: День недели | C93: Прием пищи | D93: Раздел меню | E93: Блюда | F93: Вес блюда, г | G93: Белки | H93: Жиры | I93: Углеводы | J93: Калорийность | K93: № рецептуры | L93: Цена
A94: 2 | B94: 2 | C94: Завтрак | D94: гор.блюдо | E94: Суфле творожное с топпингом | F94: 180 | G94: 14 | H94: 14 | I94: 46 | J94: 365 | K94: 365 | L94: 89
D95: гор.напиток | E95: Чай с сахаром, лимоном | F95: 215 | G95: 0 | H95: 0 | I95: 15 | J95: 62 | K95: 629 | L95: 10
D96: хлеб | E96: Батон | F96: 20 | G96: 1 | H96: 1 | I96: 5 | J96: 53 | K96: пр.пр | L96: 6
D97: фрукты | E97: Фрукт | F97: 100 | G97: 1 | H97: 1 | I97: 16 | J97: 55 | K97: пр.пр | L97: 23
D98: итого | F98: =SUM(F94:F97) -> 515 | G98: =SUM(G94:G97) -> 16 | H98: 16 | I98: 82 | J98: 535 | L98: 128
A99: 2 | B99: 2 | C99: Обед | D99: закуска
D100: 1 блюдо | E100: Борщ из свежей капусты со сметаной | F100: 250 | G100: 2 | H100: 7 | I100: 13 | J100: 128 | K100: 110 | L100: 42
D101: 2 блюдо | E101: Плов с мясом с овощной гарнировкой | F101: 260 | G101: 22 | H101: 17 | I101: 59 | J101: 436 | K101: 449 | L101: 81
D102: напиток | E102: Компот | F102: 200 | G102: 0 | H102: 0 | I102: 31 | J102: 125 | K102: 635 | L102: 25
D103: хлеб | E103: Хлеб пшеничный | F103: 30 | G103: 4 | H103: 1 | I103: 18 | J103: 101 | K103: пр.пр. | L103: 6
D104: хлеб | E104: Хлеб черный | F104: 20 | G104: 2 | H104: 0 | I104: 8 | J104: 44 | K104: пр.пр | L104: 6
D105: итого | F105: =SUM(F99:F104) -> 760 | G105: =SUM(G99:G104) -> 30 | H105: 25 | I105: 129 | J105: 834 | L105: 160
C106: Итого за день: | F106: =F105+F98 -> 1,275 | G106: =G105+G98 -> 46 | H106: 41 | I106: 211 | J106: 1,369 | L106: 288
A107: Неделя | B107: День недели | C107: Прием пищи | D107: Раздел меню | E107: Блюда | F107: Вес блюда, г | G107: Белки | H107: Жиры | I107: Углеводы | J107: Калорийность | K107: № рецептуры | L107: Цена
A108: 2 | B108: 3 | C108: Завтрак | D108: гор.блюдо | E108: Кнеля мясная паровая с кашей гречневой молочной | F108: 200 | G108: 11 | H108: 11 | I108: 35 | J108: 289 | K108: ТТК № 48,302 | L108: 73
D109: гор.напиток | E109: Отвар из шиповника | F109: 200 | G109: 0 | H109: 0 | I109: 24 | J109: 96 | K109: 705 | L109: 12
D110: хлеб | E110: Батон | F110: 20 | G110: 1 | H110: 1 | I110: 5 | J110: 53 | K110: пр.пр | L110: 6
D111: кисломол. | E111: Йогурт | F111: 125 | G111: 3 | H111: 3 | I111: 11 | J111: 87 | K111: пр.пр | L111: 37
D112: итого | F112: =SUM(F108:F111) -> 545 | G112: =SUM(G108:G111) -> 15 | H112: 15 | I112: 75 | J112: 525 | L112: 128
A113: 2 | B113: 3 | C113: Обед | D113: закуска | H113: -
D114: 1 блюдо | E114: Рассольник «Ленинградский» со сметаной | F114: 250 | G114: 4 | H114: 5 | I114: 18 | J114: 131 | K114: 132 | L114: 42
D115: 2 блюдо | E115: Мясо духовое с картофелем с овощной гарнировкой | F115: 260 | G115: 26 | H115: 15 | I115: 34 | J115: 377 | K115: 435 | L115: 100
D116: гор.напиток | E116: Чай с сахаром | F116: 200 | G116: 0 | H116: 0 | I116: 15 | J116: 58 | K116: 628 | L116: 6
D117: хлеб | E117: Хлеб пшеничный | F117: 30 | G117: 4 | H117: 1 | I117: 18 | J117: 101 | K117: пр.пр. | L117: 6
D118: хлеб | E118: Хлеб черный | F118: 20 | G118: 2 | H118: 0 | I118: 8 | J118: 44 | K118: пр.пр | L118: 6
D120: итого | F120: =SUM(F113:F119) -> 760 | G120: =SUM(G113:G119) -> 36 | H120: 21 | I120: 93 | J120: 711 | L120: 160
C121: Итого за день: | F121: =F112+F120 -> 1,305 | G121: =G112+G120 -> 51 | H121: 36 | I121: 168 | J121: 1,236 | L121: =L112+L120 -> 288
A122: Неделя | B122: День недели | C122: Прием пищи | D122: Раздел меню | E122: Блюда | F122: Вес блюда, г | G122: Белки | H122: Жиры | I122: Углеводы | J122: Калорийность | K122: № рецептуры | L122: Цена
A123: 2 | B123: 4 | C123: Завтрак | D123: гор.блюдо | E123: Каша ячневая молочная с маслом сливочным | F123: 200 | G123: 12 | H123: 15 | I123: 32 | J123: 322 | K123: 311 | L123: 48
D124: кисломол. | E124: Творожок | F124: 100 | G124: 6 | H124: 4 | I124: 20 | J124: 137 | K124: пр.пр | L124: 68
D125: гор.напиток | E125: Чай с сахаром | F125: 200 | G125: 0 | H125: 0 | I125: 15 | J125: 58 | K125: 628 | L125: 6
D126: хлеб | E126: Батон | F126: 20 | G126: 1 | H126: 1 | I126: 5 | J126: 53 | K126: пр.пр | L126: 6
D127: итого | F127: =SUM(F123:F126) -> 520 | G127: =SUM(G123:G126) -> 19 | H127: 20 | I127: 72 | J127: 570 | L127: =SUM(L123:L126) -> 128
A128: 2 | B128: 4 | C128: Обед | D128: закуска
D129: 1 блюдо | E129: Суп из овощей со сметаной | F129: 250 | G129: 8 | H129: 8 | I129: 19 | J129: 183 | K129: 132 | L129: 42
D130: 2 блюдо | E130: Тефтели мясные в бульоне | F130: 140 | G130: 9 | H130: 9 | I130: 15 | J130: 192 | K130: 461 | L130: 57
D131: гарнир | E131: Пюре картофельное | F131: 150 | G131: 4 | H131: 10 | I131: 26 | J131: 170 | K131: 472 | L131: 39
D132: напиток | E132: Компот | F132: 200 | G132: 0 | H132: 0 | I132: 46 | J132: 182 | K132: 699 | L132: 10
D133: хлеб | E133: Хлеб пшеничный | F133: 30 | G133: 4 | H133: 1 | I133: 18 | J133: 101 | K133: пр.пр. | L133: 6
D134: хлеб | E134: Хлеб черный | F134: 20 | G134: 2 | H134: 0 | I134: 8 | J134: 44 | K134: пр.пр | L134: 6
D135: итого | F135: =SUM(F128:F134) -> 790 | G135: =SUM(G128:G134) -> 27 | H135: 28 | I135: 132 | J135: 872 | L135: 160
C136: Итого за день: | F136: =F135+F127 -> 1,310 | G136: =G135+G127 -> 46 | H136: 48 | I136: 204 | J136: 1,442 | L136: =L135+L127 -> 288
A137: Неделя | B137: День недели | C137: Прием пищи | D137: Раздел меню | E137: Блюда | F137: Вес блюда, г | G137: Белки | H137: Жиры | I137: Углеводы | J137: Калорийность | K137: № рецептуры | L137: Цена
A138: 2 | B138: 5 | C138: Завтрак | D138: гор.блюдо | E138: Котлета «Здоровье» с макаронными изделиями отварными | F138: 205 | G138: 14 | H138: 19 | I138: 35 | J138: 365 | K138: ТТК 50, 516 | L138: 67
D139: хлеб | E139: Батон | F139: 20 | G139: 1 | H139: 1 | I139: 5 | J139: 53 | K139: пр.пр | L139: 6
D140: гор.напиток | E140: Чай с сахаром, лимоном | F140: 215 | G140: 0 | H140: 0 | I140: 15 | J140: 62 | K140: 629 | L140: 10
D141: булочное | E141: Блинчики с джемом | F141: 60 | G141: 3 | H141: 3 | I141: 38 | J141: 148 | K141: ТТК | L141: 45
D142: итого | F142: =SUM(F138:F141) -> 500 | G142: =SUM(G138:G141) -> 18 | H142: =SUM(H138:H141) -> 23 | I142: =SUM(I138:I141) -> 93 | J142: =SUM(J138:J141) -> 628 | L142: =SUM(L138:L141) -> 128
A143: 2 | B143: 5 | C143: Обед | D143: закуска
D144: 1 блюдо | E144: Суп картофельный с горохом, гренками | F144: 250 | G144: 8 | H144: 10 | I144: 18 | J144: 194 | K144: 139 | L144: 42
D145: 2 блюдо | E145: Гуляш | F145: 100 | G145: 11 | H145: 12 | I145: 4 | J145: 167 | K145: 401 | L145: 74
D146: гарнир | E146: Каша гречневая | F146: 150 | G146: 7 | H146: 8 | I146: 33 | J146: 230 | K146: 523 | L146: 20
D147: хлеб | E147: Хлеб пшеничный | F147: 30 | G147: 4 | H147: 1 | I147: 18 | J147: 101 | K147: пр.пр. | L147: 6
D148: хлеб | E148: Хлеб черный | F148: 20 | G148: 2 | H148: 0 | I148: 8 | J148: 44 | K148: пр.пр | L148: 6
D149: гор.напиток | E149: Отвар из шиповника | F149: 200 | G149: 0 | H149: 0 | I149: 24 | J149: 96 | K149: 705 | L149: 12
D150: итого | F150: =SUM(F143:F149) -> 750 | G150: =SUM(G143:G149) -> 32 | H150: 31 | I150: 105 | J150: 832 | K150: 1768 | L150: 160
C151: Итого за день: | F151: =F150+F142 -> 1,250 | G151: =G150+G142 -> 50 | H151: =H150+H142 -> 54 | I151: =I150+I142 -> 198 | J151: =J150+J142 -> 1,460 | L151: =L150+L142 -> 288
